bitfinex/quotes_SOLUSD_20230116
["timestamp","ask_amount","ask_price","bid_price","bid_amount"]
[1673911871599,20.0,23.723,23.705,41.66]
[1673911871792,21.46196354,23.723,23.705,10.0]
[1673911872011,20.0,23.722,23.705,10.0]
[1673911872214,17.0,23.721,23.705,10.0]
[1673911872647,20.0,23.72,23.705,10.0]
[1673911873067,17.0,23.721,23.705,10.0]
[1673911873299,17.0,23.722,23.706,31.66]
[1673911873520,17.0,23.722,23.707,10.0]
[1673911873825,21.46196354,23.722,23.707,10.0]
[1673911874143,21.46196354,23.727,23.708,17.0]
[1673911874339,17.0,23.726,23.709,10.0]
[1673911874766,20.0,23.725,23.709,10.0]
[1673911874976,17.0,23.724,23.709,10.0]
[1673911875192,20.0,23.723,23.707,10.0]
[1673911875412,17.0,23.722,23.707,10.0]
[1673911875605,20.0,23.721,23.707,10.0]
[1673911875815,17.0,23.72,23.705,10.0]
[1673911876141,20.0,23.719,23.705,10.0]
[1673911876351,17.0,23.718,23.705,10.0]
[1673911876537,20.0,23.717,23.705,10.0]
[1673911877183,17.0,23.716,23.705,10.0]
[1673911877404,103.0871,23.738,23.705,10.0]
[1673911877594,20.0,23.728,23.707,10.0]
[1673911877805,21.46196354,23.725,23.707,10.0]
[1673911878016,20.0,23.724,23.707,10.0]
[1673911878449,10.0,23.723,23.707,10.0]
[1673911878656,20.0,23.722,23.707,10.0]
[1673911878864,24.28,23.72,23.701,40.65]
[1673911879075,20.0,23.719,23.7,41.67]
[1673911879394,10.0,23.717,23.7,10.0]
[1673911879608,37.0,23.716,23.7,10.0]
[1673911879818,58.46196354,23.716,23.7,10.0]
[1673911880029,31.46196354,23.715,23.699,10.0]
[1673911880241,37.0,23.714,23.699,10.0]
[1673911880558,58.46196354,23.714,23.699,10.0]
[1673911880786,20.0,23.714,23.699,10.0]
[1673911881076,20.0,23.716,23.701,10.0]
[1673911881289,20.0,23.717,23.701,10.0]
[1673911881482,17.0,23.716,23.701,10.0]
[1673911881701,20.0,23.715,23.701,10.0]
[1673911882229,24.28,23.74,23.703,10.0]
[1673911882451,24.28,23.74,23.704,48.66]
[1673911882655,21.46196354,23.732,23.706,10.0]
[1673911882972,21.46196354,23.734,23.708,10.0]
[1673911883158,10.0,23.733,23.709,68.66]
[1673911883368,10.0,23.733,23.71,10.0]
[1673911883577,24.14,23.73,23.711,31.65]
[1673911883800,24.14,23.73,23.706,31.66]
[1673911883801,10.0,23.729,23.706,31.66]
[1673911884011,31.46196354,23.729,23.707,17.0]
[1673911884229,10.0,23.727,23.708,31.66]
[1673911884562,58.46196354,23.726,23.707,31.66]
[1673911884749,10.0,23.725,23.708,17.0]
[1673911885061,37.0,23.724,23.708,17.0]
[1673911885599,37.0,23.724,23.707,17.0]
[1673911885809,37.0,23.724,23.709,10.0]
[1673911886522,10.0,23.723,23.708,31.66]
[1673911886733,20.0,23.722,23.707,17.0]
[1673911886955,20.0,23.722,23.708,31.66]
[1673911887708,10.0,23.721,23.704,31.66]
[1673911887903,37.0,23.72,23.703,10.0]
[1673911888113,10.0,23.719,23.703,10.0]
[1673911888325,17.0,23.718,23.703,10.0]
[1673911888515,30.0,23.717,23.7,31.67]
[1673911888861,10.0,23.715,23.699,41.67]
[1673911889040,37.0,23.714,23.699,10.0]
[1673911889251,10.0,23.713,23.698,114.1333]
[1673911889478,37.0,23.712,23.699,10.0]
[1673911890086,20.0,23.712,23.699,10.0]
[1673911890305,10.0,23.737,23.701,10.0]
[1673911890520,20.0,23.718,23.702,17.0]
[1673911890733,20.0,23.718,23.703,10.0]
[1673911891261,115.3083,23.725,23.703,10.0]
[1673911891470,20.0,23.723,23.704,48.66]
[1673911891673,20.0,23.723,23.705,10.0]
[1673911891880,20.0,23.723,23.706,48.66]
[1673911892101,20.0,23.723,23.707,10.0]
[1673911892322,20.0,23.726,23.708,17.0]
[1673911892528,20.0,23.726,23.709,10.0]
[1673911892749,20.0,23.726,23.711,10.0]
[1673911893357,20.0,23.726,23.709,10.0]
[1673911893573,20.0,23.726,23.709,41.66]
[1673911893790,20.0,23.726,23.709,10.0]
[1673911894198,20.0,23.726,23.711,10.0]
[1673911894406,20.0,23.728,23.711,10.0]
[1673911894830,17.0,23.727,23.711,10.0]
[1673911895036,10.0,23.725,23.71,117.5224]
[1673911895270,37.0,23.724,23.711,10.0]
[1673911895676,24.23,23.73,23.711,10.0]
[1673911895878,103.0871,23.738,23.712,31.65]
[1673911896089,20.0,23.736,23.712,31.65]
[1673911896404,10.0,23.735,23.713,10.0]
[1673911896617,10.0,23.733,23.715,10.0]
[1673911896826,20.0,23.732,23.715,10.0]
[1673911897030,20.0,23.732,23.716,17.0]
[1673911897474,10.0,23.733,23.716,17.0]
[1673911898083,10.0,23.735,23.717,10.0]
[1673911898413,10.0,23.735,23.716,31.65]
[1673911898826,10.0,23.733,23.716,31.65]
[1673911899041,20.0,23.732,23.716,31.65]
[1673911900522,20.0,23.732,23.717,10.0]
[1673911900724,20.0,23.732,23.718,31.64]
[1673911901349,20.0,23.734,23.719,17.0]
[1673911901560,20.0,23.734,23.72,10.0]
[1673911901776,39.55,23.737,23.72,10.0]
[1673911902309,39.55,23.737,23.719,10.0]
[1673911902623,61.01196354,23.737,23.718,31.64]
[1673911902829,10.0,23.736,23.717,10.0]
[1673911903042,10.0,23.734,23.716,31.65]
[1673911903238,10.0,23.734,23.71,117.5224]
[1673911903239,24.23,23.73,23.71,117.5224]
[1673911903459,10.0,23.728,23.71,117.5224]
[1673911903655,37.0,23.727,23.71,117.5224]
[1673911903865,58.46196354,23.727,23.71,117.5224]
[1673911904073,10.0,23.726,23.71,117.5224]
[1673911904288,37.0,23.725,23.71,117.5224]
[1673911904515,10.0,23.724,23.71,117.5224]
[1673911904720,10.0,23.722,23.705,41.66]
[1673911904941,37.0,23.721,23.705,10.0]
[1673911905465,21.46196354,23.72,23.705,10.0]
[1673911905650,17.0,23.719,23.705,10.0]
[1673911906074,17.0,23.72,23.707,10.0]
[1673911906492,17.0,23.72,23.704,41.66]
[1673911906713,17.0,23.72,23.701,31.67]
[1673911906714,62.69196354,23.72,23.701,31.67]
[1673911906924,41.03196354,23.719,23.698,31.67]
[1673911907143,27.0,23.718,23.699,30.0]
[1673911907358,48.46196354,23.718,23.7,31.67]
[1673911907762,19.57,23.717,23.699,30.0]
[1673911907992,27.0,23.716,23.699,30.0]
[1673911909354,27.0,23.716,23.699,20.0]
[1673911909550,48.46196354,23.716,23.699,20.0]
[1673911909756,20.0,23.715,23.698,31.67]
[1673911909988,27.0,23.714,23.698,31.67]
[1673911910193,39.57,23.713,23.698,10.0]
[1673911910512,17.0,23.712,23.698,10.0]
[1673911910830,20.0,23.711,23.698,10.0]
[1673911911237,20.0,23.714,23.698,10.0]
[1673911911450,20.0,23.715,23.698,10.0]
[1673911911651,17.0,23.714,23.7,10.0]
[1673911911865,20.0,23.713,23.7,10.0]
[1673911912404,17.0,23.712,23.7,10.0]
[1673911912618,20.0,23.711,23.698,10.0]
[1673911913539,24.23,23.72,23.699,31.67]
[1673911913771,19.56,23.723,23.701,10.0]
[1673911913968,20.0,23.722,23.702,48.66]
[1673911914178,19.56,23.721,23.702,48.66]
[1673911914404,19.56,23.721,23.703,10.0]
[1673911914627,20.0,23.72,23.704,17.0]
[1673911914828,20.0,23.72,23.705,10.0]
[1673911915338,20.0,23.722,23.705,10.0]
[1673911915555,10.0,23.721,23.705,10.0]
[1673911915760,10.0,23.719,23.704,31.66]
[1673911915968,36.57,23.718,23.701,41.67]
[1673911916185,36.57,23.718,23.702,17.0]
[1673911916379,17.0,23.718,23.702,17.0]
[1673911917236,10.0,23.717,23.702,17.0]
[1673911918492,10.0,23.717,23.701,10.0]
[1673911918705,17.0,23.716,23.699,31.67]
[1673911918911,10.0,23.715,23.7,10.0]
[1673911919127,17.0,23.714,23.7,10.0]
[1673911920819,17.0,23.714,23.699,31.67]
[1673911921042,17.0,23.714,23.696,41.67]
[1673911921223,17.0,23.714,23.699,20.0]
[1673911921751,17.0,23.714,23.7,10.0]
[1673911922185,20.0,23.713,23.7,10.0]
[1673911924497,20.0,23.713,23.698,41.67]
[1673911924720,20.0,23.713,23.695,31.67]
[1673911924721,27.0,23.712,23.695,31.67]
[1673911924907,10.0,23.71,23.692,31.68]
[1673911925113,19.57,23.709,23.692,31.68]
[1673911925330,10.0,23.71,23.692,31.68]
[1673911925655,10.0,23.71,23.698,10.0]
[1673911926066,10.0,23.71,23.693,10.0]
[1673911927654,10.0,23.71,23.698,10.0]
[1673911928180,29.57,23.711,23.698,10.0]
[1673911928375,37.0,23.71,23.698,10.0]
[1673911928587,20.0,23.71,23.698,10.0]
[1673911929235,20.0,23.711,23.698,10.0]
[1673911930305,21.46196354,23.713,23.698,10.0]
[1673911930498,19.55,23.722,23.699,68.67]
[1673911930715,20.0,23.721,23.7,10.0]
[1673911930924,19.56,23.72,23.701,48.67]
[1673911931130,39.55,23.721,23.702,10.0]
[1673911931345,10.0,23.72,23.703,17.0]
[1673911931553,10.0,23.72,23.702,10.0]
[1673911931887,10.0,23.718,23.703,17.0]
[1673911935671,19.56,23.717,23.703,17.0]
[1673911935889,10.0,23.718,23.704,10.0]
[1673911935890,19.56,23.718,23.704,10.0]
[1673911936199,10.0,23.72,23.705,17.0]
[1673911936720,10.0,23.72,23.698,41.67]
[1673911936721,21.46196354,23.719,23.698,41.67]
[1673911936925,10.0,23.717,23.7,10.0]
[1673911937163,10.0,23.715,23.7,10.0]
[1673911938270,10.0,23.715,23.699,20.0]
[1673911939432,10.0,23.713,23.699,20.0]
[1673911941889,10.0,23.713,23.7,10.0]
[1673911942093,10.0,23.713,23.699,20.0]
[1673911942403,10.0,23.711,23.694,31.68]
[1673911942622,10.0,23.709,23.692,31.68]
[1673911943986,17.0,23.708,23.692,31.68]
[1673911944194,17.0,23.708,23.691,140.5907]
[1673911944405,10.0,23.707,23.691,140.5907]
[1673911944615,17.0,23.706,23.692,10.0]
[1673911945225,17.0,23.706,23.691,140.5907]
[1673911945665,17.0,23.706,23.692,10.0]
[1673911945980,10.0,23.705,23.691,140.5907]
[1673911946193,37.0,23.704,23.691,108.9107]
[1673911946590,10.0,23.703,23.691,108.9107]
[1673911946801,20.0,23.702,23.691,108.9107]
[1673911947549,19.57,23.701,23.688,31.68]
[1673911947764,19.57,23.701,23.684,10.0]
[1673911947765,37.0,23.7,23.684,110.0099]
[1673911947965,19.57,23.699,23.684,110.0099]
[1673911948185,17.0,23.698,23.684,110.0099]
[1673911948386,10.0,23.697,23.684,110.0099]
[1673911948594,19.57,23.699,23.684,110.0099]
[1673911948806,20.0,23.7,23.685,10.0]
[1673911949022,20.0,23.701,23.685,27.0]
[1673911949218,10.0,23.7,23.685,10.0]
[1673911949978,20.0,23.701,23.685,10.0]
[1673911950162,21.46196354,23.699,23.681,10.0]
[1673911950374,19.57,23.698,23.679,119.6236]
[1673911950578,20.0,23.701,23.681,43.55955386]
[1673911950789,20.0,23.701,23.682,31.69]
[1673911951007,20.0,23.704,23.682,31.69]
[1673911951235,20.0,23.705,23.682,31.69]
[1673911951432,20.0,23.705,23.684,10.0]
[1673911951648,29.56,23.707,23.685,48.69]
[1673911951649,19.56,23.707,23.685,48.69]
[1673911951863,19.55,23.711,23.69,24.28]
[1673911952080,29.55,23.714,23.691,160.175]
[1673911952292,20.0,23.711,23.691,160.175]
[1673911952472,20.0,23.711,23.692,10.0]
[1673911952686,20.0,23.711,23.693,48.68]
[1673911953119,17.0,23.71,23.693,48.68]
[1673911953335,36.56,23.711,23.693,17.0]
[1673911953548,10.0,23.71,23.692,17.0]
[1673911953754,17.0,23.709,23.692,17.0]
[1673911953969,17.0,23.709,23.693,31.68]
[1673911954499,17.0,23.709,23.694,10.0]
[1673911954887,10.0,23.711,23.695,17.0]
[1673911955109,10.0,23.711,23.695,48.67]
[1673911955324,20.0,23.71,23.695,48.67]
[1673911956172,10.0,23.709,23.695,31.67]
[1673911956382,17.0,23.708,23.692,31.68]
[1673911956601,29.57,23.707,23.691,111.495]
[1673911956783,37.0,23.706,23.691,111.495]
[1673911957000,10.0,23.705,23.691,111.495]
[1673911957337,20.0,23.704,23.691,111.495]
[1673911958486,10.0,23.705,23.691,111.495]
[1673911958682,17.0,23.706,23.692,10.0]
[1673911958896,10.0,23.705,23.691,111.495]
[1673911962569,10.0,23.705,23.692,31.68]
[1673911962988,17.0,23.704,23.691,111.495]
[1673911964898,17.0,23.704,23.688,31.68]
[1673911965209,41.46196354,23.703,23.686,117.3855]
[1673911965422,10.0,23.701,23.687,10.0]
[1673911965613,20.0,23.7,23.686,117.3855]
[1673911966036,20.0,23.7,23.687,31.68]
[1673911967084,20.0,23.701,23.688,10.0]
[1673911967933,19.56,23.709,23.689,48.68]
[1673911968149,19.56,23.713,23.69,10.0]
[1673911968366,20.0,23.711,23.691,48.68]
[1673911968783,20.0,23.711,23.692,10.0]
[1673911968996,20.0,23.711,23.693,48.68]
[1673911969192,20.0,23.711,23.694,10.0]
[1673911969529,20.0,23.711,23.696,10.0]
[1673911969734,20.0,23.711,23.697,48.67]
[1673911971002,20.0,23.711,23.698,10.0]
[1673911972253,20.0,23.711,23.699,31.67]
[1673911972678,10.0,23.718,23.7,17.0]
[1673911972882,10.0,23.718,23.702,10.0]
[1673911973209,16.19,23.73,23.704,10.0]
[1673911973413,16.19,23.73,23.705,48.66]
[1673911973623,10.0,23.724,23.706,10.0]
[1673911973845,10.0,23.724,23.707,48.66]
[1673911974038,10.0,23.724,23.708,10.0]
[1673911974248,10.0,23.724,23.709,48.66]
[1673911974458,10.0,23.724,23.71,10.0]
[1673911974675,10.0,23.724,23.709,48.66]
[1673911974676,20.0,23.723,23.711,17.0]
[1673911974890,20.0,23.723,23.709,48.66]
[1673911975093,10.0,23.722,23.709,48.66]
[1673911975318,20.0,23.721,23.709,48.66]
[1673911976781,20.0,23.721,23.709,17.0]
[1673911976996,20.0,23.721,23.708,17.0]
[1673911977942,10.0,23.72,23.708,17.0]
[1673911979515,10.0,23.734,23.71,10.0]
[1673911979725,10.0,23.732,23.712,10.0]
[1673911979922,20.0,23.731,23.713,48.65]
[1673911980127,20.0,23.733,23.714,10.0]
[1673911980338,20.0,23.733,23.715,48.65]
[1673911980556,20.0,23.734,23.716,10.0]
[1673911980771,10.0,23.732,23.716,10.0]
[1673911980983,20.0,23.731,23.716,10.0]
[1673911982337,29.56,23.735,23.717,17.0]
[1673911982338,19.56,23.735,23.717,17.0]
[1673911982550,183.911532,23.778,23.72,16.2]
[1673911982551,19.55,23.743,23.72,16.2]
[1673911982775,19.55,23.743,23.721,48.64]
[1673911983301,20.0,23.742,23.722,10.0]
[1673911983494,20.0,23.742,23.723,162.0474]
[1673911983716,20.0,23.742,23.724,10.0]
[1673911983916,20.0,23.742,23.725,48.63]
[1673911984123,10.0,23.745,23.726,10.0]
[1673911984333,10.0,23.745,23.727,17.0]
[1673911984334,37.0,23.744,23.727,17.0]
[1673911984752,20.0,23.744,23.727,17.0]
[1673911984971,20.0,23.746,23.725,31.63]
[1673911985182,21.46196354,23.744,23.725,31.63]
[1673911985402,19.56,23.743,23.724,31.64]
[1673911985605,20.0,23.742,23.723,113.4074]
[1673911985810,10.0,23.74,23.723,113.4074]
[1673911986140,17.0,23.739,23.723,113.4074]
[1673911986762,10.0,23.737,23.723,113.4074]
[1673911986974,17.0,23.736,23.723,113.4074]
[1673911987184,30.0,23.735,23.717,31.64]
[1673911987397,17.0,23.734,23.717,31.64]
[1673911987603,17.0,23.734,23.715,117.9223]
[1673911987801,49.57,23.733,23.713,31.65]
[1673911988010,49.57,23.733,23.7,26.2]
[1673911988011,16.17,23.73,23.711,31.65]
[1673911988343,16.17,23.73,23.7,26.2]
[1673911988344,49.57,23.729,23.708,31.66]
[1673911988560,17.0,23.728,23.708,31.66]
[1673911988746,39.57,23.727,23.707,31.66]
[1673911989084,10.0,23.725,23.707,31.66]
[1673911989289,20.0,23.724,23.706,31.66]
[1673911989609,10.0,23.723,23.707,17.0]
[1673911989837,20.0,23.722,23.708,31.66]
[1673911990001,20.0,23.722,23.709,17.0]
[1673911990640,20.0,23.722,23.708,17.0]
[1673911992013,10.0,23.721,23.708,17.0]
[1673911992225,20.0,23.72,23.707,17.0]
[1673911993077,36.56,23.726,23.707,17.0]
[1673911993290,17.0,23.726,23.708,61.66]
[1673911993604,17.0,23.726,23.71,10.0]
[1673911994224,10.0,23.725,23.71,10.0]
[1673911994968,41.02196354,23.724,23.705,117.9223]
[1673911995174,47.0,23.723,23.705,117.9223]
[1673911995493,10.0,23.721,23.705,117.9223]
[1673911995706,10.0,23.719,23.705,117.9223]
[1673911996108,10.0,23.719,23.7,31.67]
[1673911996317,17.0,23.718,23.697,149.0095]
[1673911996540,19.56,23.717,23.697,117.3395]
[1673911996752,10.0,23.715,23.697,149.0095]
[1673911996954,10.0,23.715,23.698,10.0]
[1673911997171,10.0,23.715,23.699,31.67]
[1673911997492,10.0,23.715,23.698,41.67]
[1673911997807,10.0,23.715,23.7,10.0]
[1673911998421,29.56,23.717,23.7,10.0]
[1673911998634,10.0,23.717,23.7,31.67]
[1673911998850,39.56,23.716,23.697,149.0095]
[1673911999066,10.0,23.715,23.697,149.0095]
[1673911999281,20.0,23.714,23.698,10.0]
[1673911999685,20.0,23.715,23.698,10.0]
[1673911999906,20.0,23.717,23.698,10.0]
[1673912000120,19.56,23.716,23.699,17.0]
[1673912000324,37.0,23.715,23.7,17.0]
[1673912000534,20.0,23.715,23.698,10.0]
[1673912000751,20.0,23.717,23.698,10.0]
[1673912000960,17.0,23.716,23.698,10.0]
[1673912001171,20.0,23.715,23.699,17.0]
[1673912001389,20.0,23.715,23.7,10.0]
[1673912004965,10.0,23.714,23.698,10.0]
[1673912005171,20.0,23.713,23.698,10.0]
[1673912008424,20.0,23.713,23.695,31.67]
[1673912008626,10.0,23.711,23.692,31.68]
[1673912008842,80.73,23.71,23.691,114.1119]
[1673912009042,10.0,23.709,23.691,114.1119]
[1673912009251,36.57,23.708,23.691,114.1119]
[1673912009460,10.0,23.707,23.691,114.1119]
[1673912009674,17.0,23.706,23.691,114.1119]
[1673912009997,10.0,23.705,23.687,41.68]
[1673912010317,10.0,23.705,23.687,10.0]
[1673912010318,37.0,23.704,23.687,10.0]
[1673912010515,19.56,23.703,23.687,10.0]
[1673912010738,47.0,23.702,23.684,31.69]
[1673912011048,17.0,23.701,23.684,31.69]
[1673912011261,20.0,23.7,23.685,10.0]
[1673912012309,20.0,23.7,23.683,10.0]
[1673912012514,36.57,23.699,23.682,10.0]
[1673912012728,19.57,23.699,23.682,10.0]
[1673912013151,44.22,23.7,23.684,10.0]
[1673912013354,20.0,23.7,23.684,10.0]
[1673912013566,20.0,23.701,23.685,31.69]
[1673912013775,10.0,23.7,23.686,17.0]
[1673912014100,10.0,23.7,23.682,41.69]
[1673912014296,10.0,23.7,23.683,17.0]
[1673912014505,10.0,23.7,23.684,31.69]
[1673912014735,10.0,23.698,23.683,31.69]
[1673912015137,17.0,23.697,23.682,10.0]
[1673912016189,17.0,23.697,23.681,124.1119]
[1673912016397,10.0,23.696,23.681,124.1119]
[1673912017663,10.0,23.696,23.681,114.1119]
[1673912017879,20.0,23.695,23.681,114.1119]
[1673912018093,10.0,23.694,23.681,114.1119]
[1673912018285,20.0,23.693,23.681,114.1119]
[1673912020198,20.0,23.693,23.682,10.0]
[1673912020408,119.5698,23.699,23.682,41.69]
[1673912020598,119.5698,23.699,23.684,10.0]
[1673912020812,119.5698,23.699,23.685,48.69]
[1673912021118,16.21,23.72,23.686,10.0]
[1673912021334,394.3,23.727,23.69,16.14]
[1673912021562,37.67196354,23.73,23.7,16.1]
[1673912021776,10.0,23.724,23.702,10.0]
[1673912021968,29.54,23.724,23.703,48.66]
[1673912022169,29.54,23.724,23.704,10.0]
[1673912022382,29.54,23.724,23.705,48.66]
[1673912022610,20.0,23.723,23.705,48.66]
[1673912022820,20.0,23.723,23.706,10.0]
[1673912023029,20.0,23.723,23.707,17.0]
[1673912024708,20.0,23.723,23.708,10.0]
[1673912024911,20.0,23.723,23.709,17.0]
[1673912025558,20.0,23.723,23.708,10.0]
[1673912026817,10.0,23.722,23.706,10.0]
[1673912027009,20.0,23.721,23.705,31.66]
[1673912027220,10.0,23.72,23.703,31.66]
[1673912028292,10.0,23.72,23.704,10.0]
[1673912028476,10.0,23.72,23.704,17.0]
[1673912028787,10.0,23.72,23.705,10.0]
[1673912029002,10.0,23.72,23.706,17.0]
[1673912029426,10.0,23.72,23.703,31.66]
[1673912029645,10.0,23.718,23.702,31.66]
[1673912029866,10.0,23.718,23.7,31.67]
[1673912030078,10.0,23.718,23.702,31.66]
[1673912030688,10.0,23.718,23.703,10.0]
[1673912031423,10.0,23.718,23.702,41.66]
[1673912031637,10.0,23.718,23.702,31.66]
[1673912033015,10.0,23.716,23.702,31.66]
[1673912034278,10.0,23.716,23.695,10.0]
[1673912034478,17.0,23.715,23.696,31.67]
[1673912034685,39.57,23.714,23.68,20.75290671]
[1673912034909,10.0,23.709,23.685,110.0191]
[1673912035227,39.57,23.708,23.685,110.0191]
[1673912035445,27.0,23.707,23.686,10.0]
[1673912035630,16.13,23.7,23.685,110.0191]
[1673912036367,19.58,23.699,23.685,110.0191]
[1673912036574,19.58,23.699,23.686,10.0]
[1673912036786,19.58,23.704,23.686,10.0]
[1673912037010,10.0,23.702,23.686,10.0]
[1673912037223,39.56,23.701,23.686,10.0]
[1673912037951,10.0,23.7,23.685,110.0191]
[1673912039523,26.13,23.7,23.685,110.0191]
[1673912040265,17.0,23.699,23.68,10.0]
[1673912040474,39.57,23.698,23.677,31.7]
[1673912040884,19.57,23.698,23.677,31.7]
[1673912041208,76.94682957,23.707,23.677,31.7]
[1673912041209,19.56,23.705,23.68,16.1]
[1673912041420,16.13,23.71,23.68,16.1]
[1673912041421,20.0,23.704,23.681,31.69]
[1673912041616,20.0,23.704,23.682,27.0]
[1673912041830,20.0,23.704,23.683,31.69]
[1673912042038,20.0,23.707,23.684,17.0]
[1673912042254,16.21,23.7,23.683,31.69]
[1673912042471,19.57,23.699,23.682,10.0]
[1673912042683,19.57,23.699,23.683,31.69]
[1673912042895,16.21,23.7,23.682,10.0]
[1673912043107,19.56,23.702,23.682,10.0]
[1673912043321,20.0,23.701,23.682,10.0]
[1673912043535,19.56,23.7,23.684,10.0]
[1673912043716,21.46196354,23.701,23.685,48.69]
[1673912043928,19.55,23.715,23.686,20.0]
[1673912044142,19.55,23.715,23.687,48.68]
[1673912044374,20.0,23.711,23.688,20.0]
[1673912044581,20.0,23.711,23.689,58.68]
[1673912044774,20.0,23.711,23.69,20.0]
[1673912045109,20.0,23.711,23.692,10.0]
[1673912045422,20.0,23.711,23.694,10.0]
[1673912045843,20.0,23.711,23.695,17.0]
[1673912046369,20.0,23.711,23.693,31.68]
[1673912046370,38.46196354,23.71,23.693,31.68]
[1673912046580,29.57,23.709,23.69,20.0]
[1673912046790,17.0,23.708,23.69,20.0]
[1673912047315,17.0,23.708,23.692,10.0]
[1673912048776,10.0,23.707,23.692,10.0]
[1673912049198,31.46196354,23.709,23.692,10.0]
[1673912049397,17.0,23.708,23.692,10.0]
[1673912049618,10.0,23.707,23.691,10.0]
[1673912050260,10.0,23.707,23.692,17.0]
[1673912052157,19.56,23.709,23.693,10.0]
[1673912052469,19.56,23.709,23.694,17.0]
[1673912053391,19.56,23.71,23.695,10.0]
[1673912054021,20.0,23.711,23.695,10.0]
[1673912054241,20.0,23.711,23.696,17.0]
[1673912054459,20.0,23.714,23.697,41.67]
[1673912054778,20.0,23.716,23.698,17.0]
[1673912054976,10.0,23.715,23.699,10.0]
[1673912055184,20.0,23.714,23.697,41.67]
[1673912055391,20.0,23.714,23.697,31.67]
[1673912055392,10.0,23.713,23.697,31.67]
[1673912055604,29.57,23.713,23.696,112.622]
[1673912055818,10.0,23.711,23.696,112.622]
[1673912056034,20.0,23.71,23.696,112.622]
[1673912056569,10.0,23.709,23.696,112.622]
[1673912057287,31.46196354,23.709,23.693,31.68]
[1673912057510,16.21,23.7,23.688,31.68]
[1673912057717,16.21,23.7,23.687,119.2631]